[Event "*** Titled Tuesday Blitz"]
[Site "Chess.com"]
[Date "2021.02.09"]
[Round "8"]
[White "yuki_chess123"]
[Black "guillembaches"]
[Result "0-1"]
[WhiteElo "2288"]
[BlackElo "2425"]
[TimeControl "180+1"]
[EndTime "11:30:14 PST"]
[Termination "guillembaches won by resignation"]

1. d4 {[%clk 0:02:29.9]} 1... Nf6 {[%clk 0:03:00]} 2. c4 {[%clk 0:02:30.2]} 2...
e6 {[%clk 0:03:00.3]} 3. Nc3 {[%clk 0:02:30.8]} 3... Bb4 {[%clk 0:02:59]} 4. Nf3
{[%clk 0:02:31.4]} 4... b6 {[%clk 0:02:58.2]} 5. g3 {[%clk 0:02:31.1]} 5...
Bxc3+ {[%clk 0:02:58.3]} 6. bxc3 {[%clk 0:02:30.7]} 6... Bb7 {[%clk 0:02:58.6]}
7. Bg2 {[%clk 0:02:30.6]} 7... O-O {[%clk 0:02:59.1]} 8. O-O {[%clk 0:02:30.6]}
8... d6 {[%clk 0:02:59.6]} 9. a4 {[%clk 0:02:29.9]} 9... a5 {[%clk 0:02:58.9]}
10. Qb3 {[%clk 0:02:25]} 10... Nbd7 {[%clk 0:02:58]} 11. Ba3 {[%clk 0:02:10.3]}
11... Qe7 {[%clk 0:02:57.7]} 12. Rfd1 {[%clk 0:02:02.8]} 12... Rfd8 {[%clk
0:02:47.7]} 13. c5 {[%clk 0:01:56.5]} 13... dxc5 {[%clk 0:02:41.9]} 14. c4
{[%clk 0:01:47.9]} 14... Be4 {[%clk 0:02:34.6]} 15. Qe3 {[%clk 0:01:36.7]} 15...
h6 {[%clk 0:02:16.9]} 16. dxc5 {[%clk 0:01:31.9]} 16... Nxc5 {[%clk 0:02:16.6]}
17. Bxc5 {[%clk 0:01:28.8]} 17... bxc5 {[%clk 0:02:09.6]} 18. Ne5 {[%clk
0:01:26]} 18... Bxg2 {[%clk 0:02:05.4]} 19. Kxg2 {[%clk 0:01:26.5]} 19... Rxd1
{[%clk 0:01:09.5]} 20. Rxd1 {[%clk 0:01:16.3]} 20... Qe8 {[%clk 0:01:09.3]} 21.
Qxc5 {[%clk 0:00:50]} 21... Qxa4 {[%clk 0:01:08.4]} 22. Rd3 {[%clk 0:00:49.1]}
22... Rc8 {[%clk 0:00:44.4]} 23. Qe7 {[%clk 0:00:19.8]} 23... Qe8 {[%clk
0:00:43.5]} 24. Qxe8+ {[%clk 0:00:20.1]} 24... Rxe8 {[%clk 0:00:40.8]} 25. Nc6
{[%clk 0:00:17.7]} 25... a4 {[%clk 0:00:40.9]} 26. Ra3 {[%clk 0:00:17.5]} 26...
Ra8 {[%clk 0:00:40.7]} 27. f3 {[%clk 0:00:16.9]} 27... Nd7 {[%clk 0:00:37.4]}
28. e4 {[%clk 0:00:17.3]} 28... Nb6 {[%clk 0:00:37.6]} 29. Kf2 {[%clk
0:00:17.8]} 29... Nxc4 {[%clk 0:00:37.7]} 30. Ra2 {[%clk 0:00:18.2]} 30... a3
{[%clk 0:00:36.5]} 31. Ke2 {[%clk 0:00:17.8]} 31... Ra6 {[%clk 0:00:33.9]} 32.
Nd4 {[%clk 0:00:16.3]} 32... e5 {[%clk 0:00:30.4]} 33. Nb5 {[%clk 0:00:14.4]}
33... c6 {[%clk 0:00:28.2]} 34. Nc3 {[%clk 0:00:14.2]} 34... Rb6 {[%clk
0:00:26.5]} 35. Kd3 {[%clk 0:00:14]} 35... Nb2+ {[%clk 0:00:26.7]} 36. Kc2
{[%clk 0:00:12.8]} 36... Nc4 {[%clk 0:00:26.5]} 37. Kd3 {[%clk 0:00:12.6]} 37...
Rb4 {[%clk 0:00:27.1]} 38. Nb1 {[%clk 0:00:08.3]} 38... c5 {[%clk 0:00:21.8]}
39. Nc3 {[%clk 0:00:05.3]} 39... Nb2+ {[%clk 0:00:20.2]} 40. Kc2 {[%clk
0:00:05]} 40... Nc4 {[%clk 0:00:20.2]} 41. Nd5 {[%clk 0:00:05.5]} 41... Rb2+
{[%clk 0:00:20]} 42. Rxb2 {[%clk 0:00:05.7]} 42... axb2 {[%clk 0:00:20.3]} 43.
Nc3 {[%clk 0:00:05.8]} 43... f6 {[%clk 0:00:20.4]} 44. Na4 {[%clk 0:00:06]}
44... Kf7 {[%clk 0:00:18.2]} 45. Nxc5 {[%clk 0:00:02.8]} 45... Ne3+ {[%clk
0:00:18.5]} 46. Kxb2 {[%clk 0:00:02.1]} 46... Nf1 {[%clk 0:00:19.1]} 47. Kc3
{[%clk 0:00:02]} 47... Nxh2 {[%clk 0:00:19.2]} 48. Kd3 {[%clk 0:00:02.4]} 48...
Nxf3 {[%clk 0:00:19.6]} 49. Ke3 {[%clk 0:00:02.1]} 49... Ng5 {[%clk 0:00:19.7]}
50. Nd3 {[%clk 0:00:02.1]} 50... Ne6 {[%clk 0:00:20.3]} 51. Nb4 {[%clk
0:00:02.2]} 51... h5 {[%clk 0:00:20.7]} 52. Nd5 {[%clk 0:00:02.5]} 52... Nd4
{[%clk 0:00:21]} 53. Nc7 {[%clk 0:00:02.2]} 53... g5 {[%clk 0:00:20.8]} 54. Nd5
{[%clk 0:00:02.2]} 54... Ne6 {[%clk 0:00:21]} 55. Nc3 {[%clk 0:00:02.2]} 55...
Kg6 {[%clk 0:00:21.3]} 56. Ne2 {[%clk 0:00:02.7]} 56... Nd4 {[%clk 0:00:21.5]}
57. Nxd4 {[%clk 0:00:02.7]} 57... exd4+ {[%clk 0:00:22.4]} 58. Kxd4 {[%clk
0:00:03.2]} 58... h4 {[%clk 0:00:22.8]} 59. gxh4 {[%clk 0:00:03.7]} 59... gxh4
{[%clk 0:00:23.3]} 60. Ke3 {[%clk 0:00:04.4]} 60... Kg5 {[%clk 0:00:23.6]} 61.
Kf3 {[%clk 0:00:05]} 61... Kh5 {[%clk 0:00:24]} 62. Kf4 {[%clk 0:00:05]} 62...
h3 {[%clk 0:00:23.7]} 63. Kg3 {[%clk 0:00:05.4]} 63... Kg5 {[%clk 0:00:23.9]}
64. Kxh3 {[%clk 0:00:06]} 64... Kf4 {[%clk 0:00:24.3]} 65. Kg2 {[%clk
0:00:06.5]} 65... Kxe4 {[%clk 0:00:24.6]} 66. Kf1 {[%clk 0:00:06.6]} 66... Kf3
{[%clk 0:00:24.8]} 67. Ke1 {[%clk 0:00:06.9]} 67... Kg2 {[%clk 0:00:24.9]} 0-1

[Event "*** Titled Tuesday Blitz"]
[Site "Chess.com"]
[Date "2021.02.09"]
[Round "8"]
[White "Maksimus1998"]
[Black "KuzubovYuriy"]
[Result "0-1"]
[WhiteElo "2497"]
[BlackElo "2803"]
[TimeControl "180+1"]
[EndTime "11:30:15 PST"]
[Termination "KuzubovYuriy won by resignation"]

1. d4 {[%clk 0:02:59.9]} 1... c5 {[%clk 0:03:00.9]} 2. d5 {[%clk 0:02:58.2]}
2... g6 {[%clk 0:03:00.5]} 3. Nc3 {[%clk 0:02:56.9]} 3... Bg7 {[%clk 0:03:00.9]}
4. e4 {[%clk 0:02:56.5]} 4... d6 {[%clk 0:03:01.3]} 5. Nf3 {[%clk 0:02:56.2]}
5... Nf6 {[%clk 0:03:01.9]} 6. Be2 {[%clk 0:02:54.4]} 6... O-O {[%clk
0:03:01.2]} 7. O-O {[%clk 0:02:54.4]} 7... a6 {[%clk 0:03:01.5]} 8. a4 {[%clk
0:02:54.2]} 8... e5 {[%clk 0:03:01.2]} 9. Nd2 {[%clk 0:02:41.3]} 9... b6 {[%clk
0:02:56.1]} 10. Rb1 {[%clk 0:02:38.8]} 10... Nbd7 {[%clk 0:02:55]} 11. b4 {[%clk
0:02:35.8]} 11... cxb4 {[%clk 0:02:46.9]} 12. Rxb4 {[%clk 0:02:36.7]} 12... a5
{[%clk 0:02:47.8]} 13. Rb1 {[%clk 0:02:35.2]} 13... Nc5 {[%clk 0:02:47.9]} 14.
f3 {[%clk 0:02:18]} 14... Rb8 {[%clk 0:02:36.5]} 15. Nc4 {[%clk 0:02:17.9]}
15... Ba6 {[%clk 0:02:33.7]} 16. Be3 {[%clk 0:02:12.8]} 16... Bxc4 {[%clk
0:02:28.9]} 17. Bxc4 {[%clk 0:02:12.5]} 17... Nh5 {[%clk 0:02:29.6]} 18. Qd2
{[%clk 0:01:36.2]} 18... f5 {[%clk 0:02:23.4]} 19. Rb2 {[%clk 0:01:36.1]} 19...
Nf6 {[%clk 0:02:16.8]} 20. exf5 {[%clk 0:00:59]} 20... gxf5 {[%clk 0:02:16.3]}
21. Rfb1 {[%clk 0:00:59.6]} 21... Rc8 {[%clk 0:02:08]} 22. Rxb6 {[%clk
0:00:50.6]} 22... Nxa4 {[%clk 0:02:05]} 23. Rc6 {[%clk 0:00:45]} 23... Nxc3
{[%clk 0:01:59.3]} 24. Qxc3 {[%clk 0:00:45.9]} 24... e4 {[%clk 0:01:57.7]} 25.
Bd4 {[%clk 0:00:43.4]} 25... Rb8 {[%clk 0:01:48.5]} 26. Rcb6 {[%clk 0:00:32.2]}
26... Rxb6 {[%clk 0:01:36.7]} 27. Rxb6 {[%clk 0:00:33.1]} 27... Ng4 {[%clk
0:01:31.2]} 28. Rb7 {[%clk 0:00:28.3]} 28... Bxd4+ {[%clk 0:01:07.9]} 29. Qxd4
{[%clk 0:00:29.2]} 29... Ne5 {[%clk 0:01:08.4]} 30. f4 {[%clk 0:00:18.6]} 30...
Rf7 {[%clk 0:01:03.1]} 31. Rb5 {[%clk 0:00:11.6]} 31... Nxc4 {[%clk 0:00:43.1]}
32. Qxc4 {[%clk 0:00:12.5]} 32... Rc7 {[%clk 0:00:43.2]} 33. Qb3 {[%clk
0:00:11.7]} 33... Qf6 {[%clk 0:00:41.5]} 34. Rb8+ {[%clk 0:00:10.7]} 34... Kg7
{[%clk 0:00:40.4]} 35. Qg3+ {[%clk 0:00:10.6]} 35... Qg6 {[%clk 0:00:37.4]} 36.
Rb6 {[%clk 0:00:09.8]} 36... Qxg3 {[%clk 0:00:27.1]} 37. hxg3 {[%clk 0:00:09.9]}
37... Rxc2 {[%clk 0:00:27.3]} 38. Rxd6 {[%clk 0:00:10.1]} 38... Rd2 {[%clk
0:00:18.8]} 39. Ra6 {[%clk 0:00:08.3]} 39... Rxd5 {[%clk 0:00:18.1]} 40. Kf2
{[%clk 0:00:09]} 40... h5 {[%clk 0:00:18.1]} 41. Ke3 {[%clk 0:00:08.7]} 41...
Kf7 {[%clk 0:00:17.7]} 42. Rh6 {[%clk 0:00:08.1]} 42... a4 {[%clk 0:00:15.3]}
43. Rxh5 {[%clk 0:00:07.1]} 43... Ra5 {[%clk 0:00:14.1]} 44. g4 {[%clk
0:00:06.1]} 44... a3 {[%clk 0:00:14]} 45. Rh1 {[%clk 0:00:03.9]} 45... a2 {[%clk
0:00:12.5]} 46. Ra1 {[%clk 0:00:03.1]} 46... Ra3+ {[%clk 0:00:09.1]} 47. Kd4
{[%clk 0:00:02.9]} 47... fxg4 {[%clk 0:00:09.7]} 48. Kxe4 {[%clk 0:00:03]} 48...
Kf6 {[%clk 0:00:09.8]} 49. f5 {[%clk 0:00:03]} 49... Ra4+ {[%clk 0:00:09.6]} 50.
Ke3 {[%clk 0:00:02.6]} 50... Kxf5 {[%clk 0:00:10]} 51. Kf2 {[%clk 0:00:03.2]}
51... Kf4 {[%clk 0:00:09.9]} 52. g3+ {[%clk 0:00:03.5]} 52... Ke4 {[%clk
0:00:10.3]} 53. Ke2 {[%clk 0:00:04.1]} 53... Ra3 {[%clk 0:00:10.3]} 54. Kf2
{[%clk 0:00:04.3]} 54... Kd3 {[%clk 0:00:10.6]} 0-1

[Event "*** Titled Tuesday Blitz"]
[Site "Chess.com"]
[Date "2021.02.09"]
[Round "8"]
[White "BvsN"]
[Black "Artyom_ChessMate"]
[Result "0-1"]
[WhiteElo "2343"]
[BlackElo "2545"]
[TimeControl "180+1"]
[EndTime "11:30:15 PST"]
[Termination "Artyom_ChessMate won by resignation"]

1. c4 {[%clk 0:03:00.9]} 1... e6 {[%clk 0:02:53.2]} 2. Nc3 {[%clk 0:03:00]} 2...
d5 {[%clk 0:02:53]} 3. d4 {[%clk 0:03:00]} 3... Nf6 {[%clk 0:02:52.8]} 4. cxd5
{[%clk 0:03:00]} 4... exd5 {[%clk 0:02:52.7]} 5. Bg5 {[%clk 0:02:59.8]} 5... c6
{[%clk 0:02:53.4]} 6. Qc2 {[%clk 0:02:58.4]} 6... Be7 {[%clk 0:02:53.4]} 7. e3
{[%clk 0:02:58.7]} 7... Nbd7 {[%clk 0:02:52.6]} 8. Bd3 {[%clk 0:02:58.3]} 8...
Nh5 {[%clk 0:02:53.5]} 9. Bxe7 {[%clk 0:02:57.8]} 9... Qxe7 {[%clk 0:02:53.8]}
10. Nge2 {[%clk 0:02:53.9]} 10... Nb6 {[%clk 0:02:53.6]} 11. O-O-O {[%clk
0:02:47.1]} 11... Be6 {[%clk 0:02:53.3]} 12. Ng3 {[%clk 0:02:47]} 12... Nxg3
{[%clk 0:02:53]} 13. hxg3 {[%clk 0:02:47.3]} 13... O-O-O {[%clk 0:02:53.9]} 14.
Kb1 {[%clk 0:02:45.4]} 14... Kb8 {[%clk 0:02:53.6]} 15. Rc1 {[%clk 0:02:45.9]}
15... g6 {[%clk 0:02:53.3]} 16. Na4 {[%clk 0:02:46.3]} 16... Nxa4 {[%clk
0:02:52.6]} 17. Qxa4 {[%clk 0:02:47.2]} 17... Bf5 {[%clk 0:02:40]} 18. Bxf5
{[%clk 0:02:40.4]} 18... gxf5 {[%clk 0:02:40]} 19. Qc2 {[%clk 0:02:32.5]} 19...
Qe4 {[%clk 0:02:39]} 20. Rh4 {[%clk 0:02:07.5]} 20... Qxc2+ {[%clk 0:02:31.9]}
21. Kxc2 {[%clk 0:02:05.3]} 21... Rd6 {[%clk 0:02:31.6]} 22. Rch1 {[%clk
0:02:00.2]} 22... h6 {[%clk 0:02:31.1]} 23. Rf4 {[%clk 0:01:54]} 23... c5 {[%clk
0:02:21.2]} 24. dxc5 {[%clk 0:01:32.7]} 24... Rc8 {[%clk 0:02:20.8]} 25. Kd2
{[%clk 0:01:17.1]} 25... Rxc5 {[%clk 0:02:19.8]} 26. Rc1 {[%clk 0:01:15.4]}
26... Rb5 {[%clk 0:02:15.9]} 27. b3 {[%clk 0:01:09.9]} 27... Ra6 {[%clk
0:02:15.2]} 28. Rc2 {[%clk 0:01:05.8]} 28... Rba5 {[%clk 0:02:14.9]} 29. a4
{[%clk 0:00:57.5]} 29... Rb6 {[%clk 0:02:14.3]} 30. Rc3 {[%clk 0:00:51.2]} 30...
d4 {[%clk 0:01:54.5]} 31. Rxd4 {[%clk 0:00:47.9]} 31... a6 {[%clk 0:01:54.9]}
32. Rd7 {[%clk 0:00:39.4]} 32... f6 {[%clk 0:01:52.7]} 33. Rh7 {[%clk
0:00:32.2]} 33... Rd5+ {[%clk 0:01:51.4]} 34. Rd3 {[%clk 0:00:14.3]} 34... Rxd3+
{[%clk 0:01:46.5]} 35. Kxd3 {[%clk 0:00:14.8]} 35... Rxb3+ {[%clk 0:01:47.4]}
36. Ke2 {[%clk 0:00:15.3]} 36... Rb4 {[%clk 0:01:45.8]} 37. a5 {[%clk
0:00:14.4]} 37... Rb5 {[%clk 0:01:45.9]} 38. Rxh6 {[%clk 0:00:13.1]} 38... Rxa5
{[%clk 0:01:46.4]} 39. Rxf6 {[%clk 0:00:13.4]} 39... Rd5 {[%clk 0:01:46.3]} 40.
e4 {[%clk 0:00:07.2]} 40... fxe4 {[%clk 0:01:45.5]} 41. Ke3 {[%clk 0:00:07.5]}
41... a5 {[%clk 0:01:45.7]} 42. Kxe4 {[%clk 0:00:07.3]} 42... Rd7 {[%clk
0:01:45.7]} 43. g4 {[%clk 0:00:07.3]} 43... a4 {[%clk 0:01:45.9]} 44. Rf3 {[%clk
0:00:05.7]} 44... b5 {[%clk 0:01:46.2]} 45. g5 {[%clk 0:00:05.8]} 45... b4
{[%clk 0:01:44.5]} 46. g6 {[%clk 0:00:05.9]} 46... a3 {[%clk 0:01:44.7]} 47.
Rf8+ {[%clk 0:00:06]} 47... Kc7 {[%clk 0:01:44.7]} 48. Rf7 {[%clk 0:00:05.2]}
48... a2 {[%clk 0:01:41.3]} 49. Rxd7+ {[%clk 0:00:05.4]} 49... Kxd7 {[%clk
0:01:41.3]} 50. g7 {[%clk 0:00:05.5]} 50... a1=Q {[%clk 0:01:40.5]} 51. g8=Q
{[%clk 0:00:05.8]} 51... Qe1+ {[%clk 0:01:37.8]} 52. Kd3 {[%clk 0:00:06]} 52...
Qc3+ {[%clk 0:01:31.9]} 53. Ke2 {[%clk 0:00:05.6]} 53... b3 {[%clk 0:01:31.7]}
54. Qd5+ {[%clk 0:00:05.7]} 54... Kc7 {[%clk 0:01:31.3]} 55. Qf7+ {[%clk
0:00:05.6]} 55... Kb6 {[%clk 0:01:31.5]} 56. Qe6+ {[%clk 0:00:05]} 56... Kb5
{[%clk 0:01:31.8]} 57. Qd5+ {[%clk 0:00:04.1]} 57... Kb4 {[%clk 0:01:30.4]} 58.
Qd6+ {[%clk 0:00:03.2]} 58... Ka4 {[%clk 0:01:29.3]} 59. Qa6+ {[%clk 0:00:02.8]}
59... Kb4 {[%clk 0:01:29.3]} 60. Qb6+ {[%clk 0:00:02.5]} 60... Kc4 {[%clk
0:01:27.4]} 61. Qc6+ {[%clk 0:00:01.5]} 61... Kd4 {[%clk 0:01:27.7]} 62. Qd6+
{[%clk 0:00:01.9]} 62... Ke4 {[%clk 0:01:25.1]} 63. Qe6+ {[%clk 0:00:02.4]}
63... Kf4 {[%clk 0:01:20.4]} 64. Qd6+ {[%clk 0:00:02.4]} 64... Kf5 {[%clk
0:01:19.5]} 65. Qd5+ {[%clk 0:00:02.4]} 65... Kf6 {[%clk 0:01:18.3]} 66. Qd6+
{[%clk 0:00:02.6]} 66... Kf7 {[%clk 0:01:15.8]} 67. Qd5+ {[%clk 0:00:02.7]}
67... Ke8 {[%clk 0:01:15.4]} 68. Qa8+ {[%clk 0:00:02.5]} 68... Kd7 {[%clk
0:01:14.5]} 69. Qd5+ {[%clk 0:00:03.1]} 69... Kc7 {[%clk 0:01:14.6]} 70. Qf7+
{[%clk 0:00:02.4]} 70... Kc6 {[%clk 0:01:11.1]} 71. Qe6+ {[%clk 0:00:03]} 71...
Kc5 {[%clk 0:01:11.3]} 72. Qc8+ {[%clk 0:00:03]} 72... Kb4 {[%clk 0:01:10.8]}
73. Qb7+ {[%clk 0:00:03.3]} 73... Ka3 {[%clk 0:01:10.7]} 74. Qa6+ {[%clk
0:00:03.7]} 74... Kb2 {[%clk 0:01:10.8]} 75. g4 {[%clk 0:00:03.4]} 75... Kc1
{[%clk 0:01:06.6]} 76. Qh6+ {[%clk 0:00:01.3]} 76... Kc2 {[%clk 0:01:05.9]} 77.
Qg6+ {[%clk 0:00:01.7]} 77... Kc1 {[%clk 0:01:05]} 78. Qh6+ {[%clk 0:00:01.9]}
78... Kb1 {[%clk 0:01:05.2]} 79. Qg6+ {[%clk 0:00:02.4]} 79... Qc2+ {[%clk
0:01:05.3]} 80. Kf3 {[%clk 0:00:01.5]} 80... Qxg6 {[%clk 0:01:04.8]} 0-1

[Event "*** Titled Tuesday Blitz"]
[Site "Chess.com"]
[Date "2021.02.09"]
[Round "8"]
[White "sokidze"]
[Black "Chesswizard_2007"]
[Result "0-1"]
[WhiteElo "2525"]
[BlackElo "2681"]
[TimeControl "180+1"]
[EndTime "11:30:16 PST"]
[Termination "Chesswizard_2007 won on time"]

1. e4 {[%clk 0:03:00.9]} 1... g6 {[%clk 0:02:56.3]} 2. d4 {[%clk 0:03:00.5]}
2... Bg7 {[%clk 0:02:57.2]} 3. Nc3 {[%clk 0:03:00.6]} 3... d5 {[%clk 0:02:57.3]}
4. Nxd5 {[%clk 0:02:48.8]} 4... c6 {[%clk 0:02:48.7]} 5. Ne3 {[%clk 0:02:48.5]}
5... Qxd4 {[%clk 0:02:48.3]} 6. Qxd4 {[%clk 0:02:47]} 6... Bxd4 {[%clk
0:02:49.2]} 7. Nf3 {[%clk 0:02:47.3]} 7... Bg7 {[%clk 0:02:49.1]} 8. c3 {[%clk
0:02:47]} 8... e5 {[%clk 0:02:49.4]} 9. Nc4 {[%clk 0:02:44.6]} 9... Nd7 {[%clk
0:02:47.5]} 10. Bg5 {[%clk 0:02:33.4]} 10... f6 {[%clk 0:02:44.9]} 11. Be3
{[%clk 0:02:27.6]} 11... Nh6 {[%clk 0:02:42.5]} 12. h3 {[%clk 0:02:01.7]} 12...
Nf7 {[%clk 0:02:29.7]} 13. O-O-O {[%clk 0:02:01.3]} 13... b6 {[%clk 0:02:24.7]}
14. Nd6+ {[%clk 0:01:55]} 14... Nxd6 {[%clk 0:02:24.4]} 15. Rxd6 {[%clk
0:01:55.9]} 15... Ke7 {[%clk 0:02:24.7]} 16. Rxc6 {[%clk 0:01:42.7]} 16... Bb7
{[%clk 0:02:22.3]} 17. Rc7 {[%clk 0:01:42.4]} 17... Bxe4 {[%clk 0:02:08.3]} 18.
Bb5 {[%clk 0:01:40.9]} 18... Rhd8 {[%clk 0:02:07.2]} 19. Rd1 {[%clk 0:01:36]}
19... Bf5 {[%clk 0:02:06.1]} 20. Nd2 {[%clk 0:00:48.2]} 20... a6 {[%clk
0:01:46.9]} 21. Bxd7 {[%clk 0:00:41]} 21... Rxd7 {[%clk 0:01:47.8]} 22. Rxd7+
{[%clk 0:00:41.3]} 22... Bxd7 {[%clk 0:01:48.7]} 23. Nc4 {[%clk 0:00:42.2]}
23... Be6 {[%clk 0:01:46.1]} 24. Nxb6 {[%clk 0:00:40.8]} 24... Rb8 {[%clk
0:01:44.2]} 25. Bc5+ {[%clk 0:00:39.4]} 25... Kf7 {[%clk 0:01:43]} 26. b3 {[%clk
0:00:39.7]} 26... Rb7 {[%clk 0:01:30.4]} 27. Kb2 {[%clk 0:00:36.2]} 27... f5
{[%clk 0:01:28.6]} 28. f3 {[%clk 0:00:33.7]} 28... Rc7 {[%clk 0:01:25.7]} 29.
Bf2 {[%clk 0:00:28.2]} 29... e4 {[%clk 0:01:07.6]} 30. Bd4 {[%clk 0:00:28.3]}
30... e3 {[%clk 0:00:57.2]} 31. f4 {[%clk 0:00:23]} 31... Rc6 {[%clk 0:00:45.3]}
32. Na4 {[%clk 0:00:09.3]} 32... Rd6 {[%clk 0:00:41.3]} 33. Re1 {[%clk
0:00:04.8]} 33... Bxd4 {[%clk 0:00:36]} 34. cxd4 {[%clk 0:00:05.7]} 34... Rxd4
{[%clk 0:00:36.9]} 35. Rxe3 {[%clk 0:00:06]} 35... Rxf4 {[%clk 0:00:35.2]} 36.
g3 {[%clk 0:00:03.7]} 36... Rf2+ {[%clk 0:00:34.2]} 37. Ka3 {[%clk 0:00:04.1]}
37... g5 {[%clk 0:00:31.7]} 38. Nc5 {[%clk 0:00:03.2]} 38... Bc8 {[%clk
0:00:32.4]} 39. Re5 {[%clk 0:00:01.1]} 39... Kf6 {[%clk 0:00:31]} 40. Re8 {[%clk
0:00:01.2]} 40... Rh2 {[%clk 0:00:23.4]} 41. Rxc8 {[%clk 0:00:01]} 41... Rxh3
{[%clk 0:00:23.9]} 42. Rc6+ {[%clk 0:00:01.9]} 42... Ke5 {[%clk 0:00:23.4]} 43.
Rxa6 {[%clk 0:00:02.8]} 43... Rxg3 {[%clk 0:00:23.8]} 44. Rc6 {[%clk 0:00:02.4]}
44... Kd5 {[%clk 0:00:23.5]} 45. Rc8 {[%clk 0:00:02.6]} 45... f4 {[%clk
0:00:20.1]} 46. Kb4 {[%clk 0:00:03.1]} 46... f3 {[%clk 0:00:17.5]} 47. Rd8+
{[%clk 0:00:03.4]} 47... Kc6 {[%clk 0:00:16.4]} 48. Rc8+ {[%clk 0:00:03.9]}
48... Kd6 {[%clk 0:00:16.6]} 49. Rd8+ {[%clk 0:00:03.8]} 49... Kc7 {[%clk
0:00:17.3]} 50. Ne6+ {[%clk 0:00:02.8]} 50... Kc6 {[%clk 0:00:17.9]} 51. Rf8
{[%clk 0:00:03]} 51... g4 {[%clk 0:00:18]} 52. Kc4 {[%clk 0:00:01.9]} 52... Rg2
{[%clk 0:00:18]} 53. Nd4+ {[%clk 0:00:02.8]} 53... Kd6 {[%clk 0:00:17.8]} 54. a4
{[%clk 0:00:03.4]} 54... f2 {[%clk 0:00:16.1]} 55. a5 {[%clk 0:00:03.9]} 55...
g3 {[%clk 0:00:16.6]} 56. a6 {[%clk 0:00:03.1]} 56... Rg1 {[%clk 0:00:17.2]} 57.
a7 {[%clk 0:00:02.3]} 57... Ra1 {[%clk 0:00:17.8]} 58. Nb5+ {[%clk 0:00:02.7]}
58... Ke7 {[%clk 0:00:17]} 59. Rf3 {[%clk 0:00:01.6]} 59... g2 {[%clk
0:00:16.9]} 60. Rxf2 {[%clk 0:00:01.1]} 60... g1=Q {[%clk 0:00:17.4]} 61. Re2+
{[%clk 0:00:02]} 61... Kf6 {[%clk 0:00:16.8]} 0-1

[Event "*** Titled Tuesday Blitz"]
[Site "Chess.com"]
[Date "2021.02.09"]
[Round "8"]
[White "C_K_G"]
[Black "NikolasTheiss"]
[Result "0-1"]
[WhiteElo "2110"]
[BlackElo "2327"]
[TimeControl "180+1"]
[EndTime "11:30:19 PST"]
[Termination "NikolasTheiss won on time"]

1. e4 {[%clk 0:03:00.9]} 1... g5 {[%clk 0:02:54.8]} 2. Nf3 {[%clk 0:03:00.2]}
2... g4 {[%clk 0:02:54.1]} 3. Ne5 {[%clk 0:02:57.9]} 3... h5 {[%clk 0:02:52.4]}
4. Bc4 {[%clk 0:02:53.9]} 4... e6 {[%clk 0:02:52.7]} 5. h3 {[%clk 0:02:48.7]}
5... d6 {[%clk 0:02:49.3]} 6. Nxf7 {[%clk 0:02:38.2]} 6... Kxf7 {[%clk
0:02:50.2]} 7. hxg4 {[%clk 0:02:37.1]} 7... Nc6 {[%clk 0:02:33.3]} 8. Rxh5
{[%clk 0:02:33]} 8... Rxh5 {[%clk 0:02:30.4]} 9. gxh5 {[%clk 0:02:33.9]} 9...
Qh4 {[%clk 0:02:23.4]} 10. Qf3+ {[%clk 0:02:28.5]} 10... Nf6 {[%clk 0:02:23]}
11. Nc3 {[%clk 0:02:25.1]} 11... Qh1+ {[%clk 0:01:53.6]} 12. Bf1 {[%clk
0:02:11.1]} 12... Qxh5 {[%clk 0:01:53.6]} 13. Qxh5+ {[%clk 0:02:09.5]} 13...
Nxh5 {[%clk 0:01:54.5]} 14. Ne2 {[%clk 0:02:06.6]} 14... e5 {[%clk 0:01:52.3]}
15. c3 {[%clk 0:02:05.1]} 15... Bh6 {[%clk 0:01:46.9]} 16. d3 {[%clk 0:02:00.4]}
16... Bxc1 {[%clk 0:01:47.8]} 17. Rxc1 {[%clk 0:02:00.3]} 17... Be6 {[%clk
0:01:46.9]} 18. b3 {[%clk 0:01:58.1]} 18... Rh8 {[%clk 0:01:44]} 19. g3 {[%clk
0:01:57.3]} 19... Nf6 {[%clk 0:01:43.6]} 20. Bg2 {[%clk 0:01:50.4]} 20... Bh3
{[%clk 0:01:31.8]} 21. Bf3 {[%clk 0:01:40.1]} 21... Bg4 {[%clk 0:01:30.6]} 22.
Ng1 {[%clk 0:01:24.2]} 22... Bxf3 {[%clk 0:01:29.8]} 23. Nxf3 {[%clk 0:01:25.1]}
23... Rh1+ {[%clk 0:01:29.2]} 24. Kd2 {[%clk 0:01:25.5]} 24... Rxc1 {[%clk
0:01:29.4]} 25. Kxc1 {[%clk 0:01:26.4]} 25... Ng4 {[%clk 0:01:29.5]} 26. Ng5+
{[%clk 0:01:16.9]} 26... Kf6 {[%clk 0:01:21.8]} 27. Nh7+ {[%clk 0:01:14.7]}
27... Kg7 {[%clk 0:01:16.3]} 28. Ng5 {[%clk 0:01:00.7]} 28... Kf6 {[%clk
0:01:11]} 29. Nh3 {[%clk 0:01:00.2]} 29... Nd8 {[%clk 0:01:01.3]} 30. Kd2 {[%clk
0:00:59.7]} 30... Ne6 {[%clk 0:01:00.4]} 31. Ke2 {[%clk 0:00:59.1]} 31... Ng5
{[%clk 0:00:49]} 32. Ng1 {[%clk 0:00:52.9]} 32... Nh6 {[%clk 0:00:29.7]} 33. f4
{[%clk 0:00:48.9]} 33... Ne6 {[%clk 0:00:22.5]} 34. Kf3 {[%clk 0:00:47.2]} 34...
exf4 {[%clk 0:00:21.4]} 35. gxf4 {[%clk 0:00:46.7]} 35... Nc5 {[%clk 0:00:21]}
36. d4 {[%clk 0:00:42.5]} 36... Nd3 {[%clk 0:00:19.7]} 37. Ne2 {[%clk
0:00:31.2]} 37... Ne1+ {[%clk 0:00:14.1]} 38. Kf2 {[%clk 0:00:28.6]} 38... Nc2
{[%clk 0:00:14.5]} 39. Kg3 {[%clk 0:00:24.6]} 39... Na3 {[%clk 0:00:13.9]} 40.
c4 {[%clk 0:00:20.4]} 40... Nc2 {[%clk 0:00:12.9]} 41. e5+ {[%clk 0:00:19.7]}
41... Kg6 {[%clk 0:00:07.5]} 42. d5 {[%clk 0:00:18.8]} 42... Nf5+ {[%clk
0:00:06.8]} 43. Kf3 {[%clk 0:00:18.9]} 43... Nfd4+ {[%clk 0:00:07.3]} 44. Nxd4
{[%clk 0:00:18.4]} 44... Nxd4+ {[%clk 0:00:08.2]} 45. Ke4 {[%clk 0:00:18.8]}
45... Nf5 {[%clk 0:00:08.5]} 46. b4 {[%clk 0:00:16.8]} 46... Ng3+ {[%clk
0:00:07.5]} 47. Kf3 {[%clk 0:00:16.9]} 47... Nh5 {[%clk 0:00:07.5]} 48. Kg4
{[%clk 0:00:14.9]} 48... Ng7 {[%clk 0:00:07.5]} 49. c5 {[%clk 0:00:13.9]} 49...
Ne8 {[%clk 0:00:04.7]} 50. cxd6 {[%clk 0:00:12.3]} 50... cxd6 {[%clk 0:00:04.4]}
51. f5+ {[%clk 0:00:12.5]} 51... Kf7 {[%clk 0:00:04.7]} 52. e6+ {[%clk 0:00:10]}
52... Kf6 {[%clk 0:00:05]} 53. Kf4 {[%clk 0:00:09.1]} 53... Nc7 {[%clk
0:00:05.6]} 54. Ke4 {[%clk 0:00:08.9]} 54... Ke7 {[%clk 0:00:05]} 55. Kd4 {[%clk
0:00:06.4]} 55... Kf6 {[%clk 0:00:04.7]} 56. Ke4 {[%clk 0:00:06.2]} 56... Nb5
{[%clk 0:00:04.5]} 57. a4 {[%clk 0:00:05.6]} 57... Nc3+ {[%clk 0:00:04.6]} 58.
Kd4 {[%clk 0:00:05.6]} 58... Nxa4 {[%clk 0:00:05.1]} 59. Kc4 {[%clk 0:00:05.2]}
59... a6 {[%clk 0:00:05.4]} 60. b5 {[%clk 0:00:04.5]} 60... Nb6+ {[%clk
0:00:05.7]} 0-1